{"text_format":"1","workbook":"xlsx","n_sheets":1,"sheets":["Лист1"],"not_rendered":{"charts":0,"images":0,"macros":1,"external_links":0,"defined_names":0,"comments":0,"pivot_tables":0},"unopened":[],"bounds":{"document_bytes":16777216,"sheet_cells":100000,"rows_first":2000,"rows_last":500,"rows_between":2000,"halvings":0,"cell_chars":16384,"cell_head_chars":4096},"cells_cut":0,"cells_raw":0,"read":"whole","date_system":"1900"}

{"sheet":"Лист1","index":0,"n_rows":11,"n_cols":26,"rows_kept":11,"cut":false,"hidden":false,"merged":[]}
["-",600044391,"Группа №600044391",2,3133828817,"магазин авторегистраторов",8.1999999999999993,760181779,"Магазин авторегистраторов. Ростов","Расчет при получении, доставка до 24 часов, привезем 5 на выбор, заходите!",{"$f":"IF(I1=\"\",\"\",LEN(I1))","v":33},{"$f":"IF(J1=\"\",\"\",LEN(J1))","v":74},"http://registratornadonu.ru?utm_source=Direct&utm_medium=CPC&utm_campaign=Videoregistrator1&utm_term=%7Bkeyword%7D&utm_content=text_1%2B%7Bposition_type%7D%2B%7Bposition%7D","Ростов-на-Дону",1.3,null,null,"Активно","Работает везде","Классические||Зеркала||С двумя камерами||Мини","http://registratornadonu.ru/products/category/1500466?utm_source=Direct&utm_medium=CPC&utm_campaign=Videoregistrator1&utm_term=%7Bkeyword%7D&utm_content=text_1%2B%7Bposition_type%7D%2B%7Bposition%7D||http://registratornadonu.ru/products/category/1500465?utm_source=Direct&utm_medium=CPC&utm_campaign=Videoregistrator1&utm_term=%7Bkeyword%7D&utm_content=text_1%2B%7Bposition_type%7D%2B%7Bposition%7D||http://registratornadonu.ru/products/category/1502330?utm_source=Direct&utm_medium=CPC&utm_campaign=Videoregistrator1&utm_term=%7Bkeyword%7D&utm_content=text_1%2B%7Bposition_type%7D%2B%7Bposition%7D||http://registratornadonu.ru/products/category/1504691?utm_source=Direct&utm_medium=CPC&utm_campaign=Videoregistrator1&utm_term=%7Bkeyword%7D&utm_content=text_1%2B%7Bposition_type%7D%2B%7Bposition%7D","","","",null,""]
["-",600044394,"Группа №600044394",3,3133828830,"видеорегистратор full hd 1080 цена",3.3,760181784,"Видеорегистратор FHD 1080 цена","Расчет при получении, доставка до 24 часов, привезем 5 на выбор, заходите!",{"$f":"IF(I2=\"\",\"\",LEN(I2))","v":30},{"$f":"IF(J2=\"\",\"\",LEN(J2))","v":74},"http://registratornadonu.ru?utm_source=Direct&utm_medium=CPC&utm_campaign=Videoregistrator1&utm_term=%7Bkeyword%7D&utm_content=text_1%2B%7Bposition_type%7D%2B%7Bposition%7D","Ростов-на-Дону",6.4,null,null,"Активно","Работает везде","Классические||Зеркала||С двумя камерами||Мини","http://registratornadonu.ru/products/category/1500466?utm_source=Direct&utm_medium=CPC&utm_campaign=Videoregistrator1&utm_term=%7Bkeyword%7D&utm_content=text_1%2B%7Bposition_type%7D%2B%7Bposition%7D||http://registratornadonu.ru/products/category/1500465?utm_source=Direct&utm_medium=CPC&utm_campaign=Videoregistrator1&utm_term=%7Bkeyword%7D&utm_content=text_1%2B%7Bposition_type%7D%2B%7Bposition%7D||http://registratornadonu.ru/products/category/1502330?utm_source=Direct&utm_medium=CPC&utm_campaign=Videoregistrator1&utm_term=%7Bkeyword%7D&utm_content=text_1%2B%7Bposition_type%7D%2B%7Bposition%7D||http://registratornadonu.ru/products/category/1504691?utm_source=Direct&utm_medium=CPC&utm_campaign=Videoregistrator1&utm_term=%7Bkeyword%7D&utm_content=text_1%2B%7Bposition_type%7D%2B%7Bposition%7D","","","",null,""]
["-",600044398,"Группа №600044398",4,3133828852,"видеорегистратор full hd 1080p купить",5.5,760181788,"Видеорегистраторы FULL HD 1080p","Расчет при получении, доставка до 24 часов, привезем 5 на выбор, заходите!",{"$f":"IF(I3=\"\",\"\",LEN(I3))","v":31},{"$f":"IF(J3=\"\",\"\",LEN(J3))","v":74},"http://registratornadonu.ru?utm_source=Direct&utm_medium=CPC&utm_campaign=Videoregistrator1&utm_term=%7Bkeyword%7D&utm_content=text_1%2B%7Bposition_type%7D%2B%7Bposition%7D","Ростов-на-Дону",8.1999999999999993,null,null,"Активно","Работает везде","Классические||Зеркала||С двумя камерами||Мини","http://registratornadonu.ru/products/category/1500466?utm_source=Direct&utm_medium=CPC&utm_campaign=Videoregistrator1&utm_term=%7Bkeyword%7D&utm_content=text_1%2B%7Bposition_type%7D%2B%7Bposition%7D||http://registratornadonu.ru/products/category/1500465?utm_source=Direct&utm_medium=CPC&utm_campaign=Videoregistrator1&utm_term=%7Bkeyword%7D&utm_content=text_1%2B%7Bposition_type%7D%2B%7Bposition%7D||http://registratornadonu.ru/products/category/1502330?utm_source=Direct&utm_medium=CPC&utm_campaign=Videoregistrator1&utm_term=%7Bkeyword%7D&utm_content=text_1%2B%7Bposition_type%7D%2B%7Bposition%7D||http://registratornadonu.ru/products/category/1504691?utm_source=Direct&utm_medium=CPC&utm_campaign=Videoregistrator1&utm_term=%7Bkeyword%7D&utm_content=text_1%2B%7Bposition_type%7D%2B%7Bposition%7D","","","",null,""]
["-",600044401,"Группа №600044401",5,3133828855,"видеорегистратор full hd f900",4.0999999999999996,760181792,"Видеорегистратор FULL HD F900","Расчет при получении, доставка до 24 часов, привезем 5 на выбор, заходите!",{"$f":"IF(I4=\"\",\"\",LEN(I4))","v":29},{"$f":"IF(J4=\"\",\"\",LEN(J4))","v":74},"http://registratornadonu.ru/products/16634910?utm_source=Direct&utm_medium=CPC&utm_campaign=Videoregistrator1&utm_term=%7Bkeyword%7D&utm_content=text_1%2B%7Bposition_type%7D%2B%7Bposition%7D","Ростов-на-Дону",8.4,null,null,"Активно","Работает везде","Классические||Зеркала||С двумя камерами||Мини","http://registratornadonu.ru/products/category/1500466?utm_source=Direct&utm_medium=CPC&utm_campaign=Videoregistrator1&utm_term=%7Bkeyword%7D&utm_content=text_1%2B%7Bposition_type%7D%2B%7Bposition%7D||http://registratornadonu.ru/products/category/1500465?utm_source=Direct&utm_medium=CPC&utm_campaign=Videoregistrator1&utm_term=%7Bkeyword%7D&utm_content=text_1%2B%7Bposition_type%7D%2B%7Bposition%7D||http://registratornadonu.ru/products/category/1502330?utm_source=Direct&utm_medium=CPC&utm_campaign=Videoregistrator1&utm_term=%7Bkeyword%7D&utm_content=text_1%2B%7Bposition_type%7D%2B%7Bposition%7D||http://registratornadonu.ru/products/category/1504691?utm_source=Direct&utm_medium=CPC&utm_campaign=Videoregistrator1&utm_term=%7Bkeyword%7D&utm_content=text_1%2B%7Bposition_type%7D%2B%7Bposition%7D","","","",null,""]
["-",600044405,"Группа №600044405",6,3133828875,"видеорегистратор хорошо снимающий ночью",3.6,760181798,"Видеорегистратор снимающий ночью","Расчет при получении, доставка до 24 часов, привезем 5 на выбор, заходите!",{"$f":"IF(I5=\"\",\"\",LEN(I5))","v":32},{"$f":"IF(J5=\"\",\"\",LEN(J5))","v":74},"http://registratornadonu.ru/products/16633811?utm_source=Direct&utm_medium=CPC&utm_campaign=Videoregistrator1&utm_term=%7Bkeyword%7D&utm_content=text_1%2B%7Bposition_type%7D%2B%7Bposition%7D","Ростов-на-Дону",1.3,null,null,"Активно","Работает везде","Классические||Зеркала||С двумя камерами||Мини","http://registratornadonu.ru/products/category/1500466?utm_source=Direct&utm_medium=CPC&utm_campaign=Videoregistrator1&utm_term=%7Bkeyword%7D&utm_content=text_1%2B%7Bposition_type%7D%2B%7Bposition%7D||http://registratornadonu.ru/products/category/1500465?utm_source=Direct&utm_medium=CPC&utm_campaign=Videoregistrator1&utm_term=%7Bkeyword%7D&utm_content=text_1%2B%7Bposition_type%7D%2B%7Bposition%7D||http://registratornadonu.ru/products/category/1502330?utm_source=Direct&utm_medium=CPC&utm_campaign=Videoregistrator1&utm_term=%7Bkeyword%7D&utm_content=text_1%2B%7Bposition_type%7D%2B%7Bposition%7D||http://registratornadonu.ru/products/category/1504691?utm_source=Direct&utm_medium=CPC&utm_campaign=Videoregistrator1&utm_term=%7Bkeyword%7D&utm_content=text_1%2B%7Bposition_type%7D%2B%7Bposition%7D","","","",null,""]
["-",600044409,"Группа №600044409",7,3133828889,"автомобильный регистратор +с двумя камерами",1.8,760181802,"Авто видеорегистратор на 2 камеры","Расчет при получении, доставка до 24 часов, привезем 5 на выбор, заходите!",{"$f":"IF(I6=\"\",\"\",LEN(I6))","v":33},{"$f":"IF(J6=\"\",\"\",LEN(J6))","v":74},"http://registratornadonu.ru/products/category/1502330?utm_source=Direct&utm_medium=CPC&utm_campaign=Videoregistrator1&utm_term=%7Bkeyword%7D&utm_content=text_1%2B%7Bposition_type%7D%2B%7Bposition%7D","Ростов-на-Дону",5.7,null,null,"Активно","Работает везде","Классические||Зеркала||Мини","http://registratornadonu.ru/products/category/1500466?utm_source=Direct&utm_medium=CPC&utm_campaign=Videoregistrator1&utm_term=%7Bkeyword%7D&utm_content=text_1%2B%7Bposition_type%7D%2B%7Bposition%7D||http://registratornadonu.ru/products/category/1500465?utm_source=Direct&utm_medium=CPC&utm_campaign=Videoregistrator1&utm_term=%7Bkeyword%7D&utm_content=text_1%2B%7Bposition_type%7D%2B%7Bposition%7D||http://registratornadonu.ru/products/category/1504691?utm_source=Direct&utm_medium=CPC&utm_campaign=Videoregistrator1&utm_term=%7Bkeyword%7D&utm_content=text_1%2B%7Bposition_type%7D%2B%7Bposition%7D","","","",null,""]
["-",600044412,"Группа №600044412",8,3133828896,"купить видеорегистратор dod f900lhd",2.9,760181806,"Купить регистратор dod F900lhd","Расчет при получении, доставка до 24 часов, привезем 5 на выбор, заходите!",{"$f":"IF(I7=\"\",\"\",LEN(I7))","v":30},{"$f":"IF(J7=\"\",\"\",LEN(J7))","v":74},"http://registratornadonu.ru?utm_source=Direct&utm_medium=CPC&utm_campaign=Videoregistrator1&utm_term=%7Bkeyword%7D&utm_content=text_1%2B%7Bposition_type%7D%2B%7Bposition%7D","Ростов-на-Дону",10,null,null,"Активно","Работает везде","Классические||Зеркала||С двумя камерами||Мини","http://registratornadonu.ru/products/category/1500466?utm_source=Direct&utm_medium=CPC&utm_campaign=Videoregistrator1&utm_term=%7Bkeyword%7D&utm_content=text_1%2B%7Bposition_type%7D%2B%7Bposition%7D||http://registratornadonu.ru/products/category/1500465?utm_source=Direct&utm_medium=CPC&utm_campaign=Videoregistrator1&utm_term=%7Bkeyword%7D&utm_content=text_1%2B%7Bposition_type%7D%2B%7Bposition%7D||http://registratornadonu.ru/products/category/1502330?utm_source=Direct&utm_medium=CPC&utm_campaign=Videoregistrator1&utm_term=%7Bkeyword%7D&utm_content=text_1%2B%7Bposition_type%7D%2B%7Bposition%7D||http://registratornadonu.ru/products/category/1504691?utm_source=Direct&utm_medium=CPC&utm_campaign=Videoregistrator1&utm_term=%7Bkeyword%7D&utm_content=text_1%2B%7Bposition_type%7D%2B%7Bposition%7D","","","",null,""]
["-",600044414,"Группа №600044414",9,3133828905,"видеорегистратор ростов",8.1,760181809,"Видеорегистратор ростов","Расчет при получении, доставка до 24 часов, привезем 5 на выбор, заходите!",{"$f":"IF(I8=\"\",\"\",LEN(I8))","v":23},{"$f":"IF(J8=\"\",\"\",LEN(J8))","v":74},"http://registratornadonu.ru?utm_source=Direct&utm_medium=CPC&utm_campaign=Videoregistrator1&utm_term=%7Bkeyword%7D&utm_content=text_1%2B%7Bposition_type%7D%2B%7Bposition%7D","Ростов-на-Дону",1.3,null,null,"Активно","Работает везде","Классические||Зеркала||С двумя камерами||Мини","http://registratornadonu.ru/products/category/1500466?utm_source=Direct&utm_medium=CPC&utm_campaign=Videoregistrator1&utm_term=%7Bkeyword%7D&utm_content=text_1%2B%7Bposition_type%7D%2B%7Bposition%7D||http://registratornadonu.ru/products/category/1500465?utm_source=Direct&utm_medium=CPC&utm_campaign=Videoregistrator1&utm_term=%7Bkeyword%7D&utm_content=text_1%2B%7Bposition_type%7D%2B%7Bposition%7D||http://registratornadonu.ru/products/category/1502330?utm_source=Direct&utm_medium=CPC&utm_campaign=Videoregistrator1&utm_term=%7Bkeyword%7D&utm_content=text_1%2B%7Bposition_type%7D%2B%7Bposition%7D||http://registratornadonu.ru/products/category/1504691?utm_source=Direct&utm_medium=CPC&utm_campaign=Videoregistrator1&utm_term=%7Bkeyword%7D&utm_content=text_1%2B%7Bposition_type%7D%2B%7Bposition%7D","","","",null,""]
["-",600044416,"Группа №600044416",10,3133828915,"видеорегистратор цена фото",5.0999999999999996,760181812,"Видеорегистратор цена фото","Расчет при получении, доставка до 24 часов, привезем 5 на выбор, заходите!",{"$f":"IF(I9=\"\",\"\",LEN(I9))","v":26},{"$f":"IF(J9=\"\",\"\",LEN(J9))","v":74},"http://registratornadonu.ru?utm_source=Direct&utm_medium=CPC&utm_campaign=Videoregistrator1&utm_term=%7Bkeyword%7D&utm_content=text_1%2B%7Bposition_type%7D%2B%7Bposition%7D","Ростов-на-Дону",2.6,null,null,"Активно","Работает везде","Классические||Зеркала||С двумя камерами||Мини","http://registratornadonu.ru/products/category/1500466?utm_source=Direct&utm_medium=CPC&utm_campaign=Videoregistrator1&utm_term=%7Bkeyword%7D&utm_content=text_1%2B%7Bposition_type%7D%2B%7Bposition%7D||http://registratornadonu.ru/products/category/1500465?utm_source=Direct&utm_medium=CPC&utm_campaign=Videoregistrator1&utm_term=%7Bkeyword%7D&utm_content=text_1%2B%7Bposition_type%7D%2B%7Bposition%7D||http://registratornadonu.ru/products/category/1502330?utm_source=Direct&utm_medium=CPC&utm_campaign=Videoregistrator1&utm_term=%7Bkeyword%7D&utm_content=text_1%2B%7Bposition_type%7D%2B%7Bposition%7D||http://registratornadonu.ru/products/category/1504691?utm_source=Direct&utm_medium=CPC&utm_campaign=Videoregistrator1&utm_term=%7Bkeyword%7D&utm_content=text_1%2B%7Bposition_type%7D%2B%7Bposition%7D","","","",null,""]
["-",600044419,"Группа №600044419",11,3133828926,"купить видеорегистратор gs8000l",5.0999999999999996,760181816,"Купить видеорегистратор GS8000l","Расчет при получении, доставка до 24 часов, привезем 5 на выбор, заходите!",{"$f":"IF(I10=\"\",\"\",LEN(I10))","v":31},{"$f":"IF(J10=\"\",\"\",LEN(J10))","v":74},"http://registratornadonu.ru/products/16633880?utm_source=Direct&utm_medium=CPC&utm_campaign=Videoregistrator1&utm_term=%7Bkeyword%7D&utm_content=text_1%2B%7Bposition_type%7D%2B%7Bposition%7D","Ростов-на-Дону",3,null,null,"Активно","Работает везде","Классические||Зеркала||С двумя камерами||Мини","http://registratornadonu.ru/products/category/1500466?utm_source=Direct&utm_medium=CPC&utm_campaign=Videoregistrator1&utm_term=%7Bkeyword%7D&utm_content=text_1%2B%7Bposition_type%7D%2B%7Bposition%7D||http://registratornadonu.ru/products/category/1500465?utm_source=Direct&utm_medium=CPC&utm_campaign=Videoregistrator1&utm_term=%7Bkeyword%7D&utm_content=text_1%2B%7Bposition_type%7D%2B%7Bposition%7D||http://registratornadonu.ru/products/category/1502330?utm_source=Direct&utm_medium=CPC&utm_campaign=Videoregistrator1&utm_term=%7Bkeyword%7D&utm_content=text_1%2B%7Bposition_type%7D%2B%7Bposition%7D||http://registratornadonu.ru/products/category/1504691?utm_source=Direct&utm_medium=CPC&utm_campaign=Videoregistrator1&utm_term=%7Bkeyword%7D&utm_content=text_1%2B%7Bposition_type%7D%2B%7Bposition%7D","","","",null,""]
["-",600044421,"Группа №600044421",12,3133828928,"китайские видеорегистраторы купить",10,760181819,"Китайские видеорегистраторы. Купи","Расчет при получении, доставка до 24 часов, привезем 5 на выбор, заходите!",{"$f":"IF(I11=\"\",\"\",LEN(I11))","v":33},{"$f":"IF(J11=\"\",\"\",LEN(J11))","v":74},"http://registratornadonu.ru?utm_source=Direct&utm_medium=CPC&utm_campaign=Videoregistrator1&utm_term=%7Bkeyword%7D&utm_content=text_1%2B%7Bposition_type%7D%2B%7Bposition%7D","Ростов-на-Дону",4.9000000000000004,null,null,"Активно","Работает везде","Классические||Зеркала||С двумя камерами||Мини","http://registratornadonu.ru/products/category/1500466?utm_source=Direct&utm_medium=CPC&utm_campaign=Videoregistrator1&utm_term=%7Bkeyword%7D&utm_content=text_1%2B%7Bposition_type%7D%2B%7Bposition%7D||http://registratornadonu.ru/products/category/1500465?utm_source=Direct&utm_medium=CPC&utm_campaign=Videoregistrator1&utm_term=%7Bkeyword%7D&utm_content=text_1%2B%7Bposition_type%7D%2B%7Bposition%7D||http://registratornadonu.ru/products/category/1502330?utm_source=Direct&utm_medium=CPC&utm_campaign=Videoregistrator1&utm_term=%7Bkeyword%7D&utm_content=text_1%2B%7Bposition_type%7D%2B%7Bposition%7D||http://registratornadonu.ru/products/category/1504691?utm_source=Direct&utm_medium=CPC&utm_campaign=Videoregistrator1&utm_term=%7Bkeyword%7D&utm_content=text_1%2B%7Bposition_type%7D%2B%7Bposition%7D","","","",null,""]